Workbook

Sheet Herleitung Preise
A3: Auftragsänderung bzw. Preisanpassung von Rahmenvereinbarungen gem. § 313 BGB sowie § 132 GWB
A5: Bitte bei der Dateneingabe bzw. der Ermittlung der neuen Angebotspreise unbedingt die Kommentare der einzelnen Zellen beachten!
A6: In den Tabellenregistern finden Sie Beispiele zur Herleitung!
A9: Vergabenummer:
A10: Vertragspartner:
A11: Vertragsbeginn:
A12: Angebotspreis bei Vertragsbeginn [Euro]:
A13: Datum der letzten Preisanpassung:
A14: Letzter aktualisierter Angebotspreis [Euro]:
A16: Monat /Jahr | B16: Preisindex [Punkte] | C16: Veränderung Preisindex zum Vormonat [Punkte] | D16: Veränderung [%] Anzeige gerundet | E16: Angebotspreis [Euro] Ermittelt mit ungerundeten Werten
A17: 2021-02-01 | B17: 110.0 | C17: - | D17: -
A18: 2021-03-01 | B18: 110.6 | C18: =B18-B17 -> 0.6 | D18: =C18/B17 -> 0.55% | E18: 0.00
A19: 2021-04-01 | B19: 110.8 | C19: =B19-B18 -> 0.2 | D19: =C19/B18 -> 0.18% | E19: =E18+E18*D19 -> 0.00
A20: 2021-05-01 | B20: 111.1 | C20: 0.3 | D20: 0.27% | E20: =E19+E19*D20 -> 0.00
A21: 2021-06-01 | B21: 111.3 | C21: 0.2 | D21: 0.18% | E21: 0.00
A22: 2021-07-01 | B22: 111.6 | C22: 0.3 | D22: 0.27% | E22: =E21+E21*D22 -> 0.00
A23: 2021-08-01 | B23: 111.9 | C23: 0.3 | D23: 0.27% | E23: 0.00
A24: 2021-09-01 | B24: 112.2 | C24: 0.3 | D24: 0.27% | E24: 0.00
A25: 2021-10-01 | B25: 112.3 | C25: 0.1 | D25: 0.09% | E25: 0.00
A26: 2021-11-01 | B26: 112.5 | C26: 0.2 | D26: 0.18% | E26: 0.00
A27: 2021-12-01 | B27: 112.6 | C27: =B27-B26 -> 0.1 | D27: =C27/B26 -> 0.09% | E27: =E26+E26*D27 -> 0.00
A28: 2022-01-01 | B28: 112.1 | C28: -0.5 | D28: -0.44% | E28: 0.00
A29: 2022-02-01 | B29: 112.4 | C29: =B29-B28 -> 0.3 | D29: =C29/B28 -> 0.27% | E29: =E28+E28*D29 -> 0.00
A30: 2022-03-01 | B30: 112.8 | C30: =B30-B29 -> 0.4 | D30: =C30/B29 -> 0.36% | E30: =E29+E29*D30 -> 0.00
A31: 2022-04-01 | B31: 113.3 | C31: =B31-B30 -> 0.5 | D31: =C31/B30 -> 0.44% | E31: =E30+E30*D31 -> 0.00
A32: 2022-05-01 | B32: 113.9 | C32: =B32-B31 -> 0.6 | D32: =C32/B31 -> 0.53% | E32: =E31+E31*D32 -> 0.00
A34: Datenquelle: | C34: Abteilung 12 „Andere Waren- und Dienstleistungen“ (Veränderungsrate zum Vormonat in %) des statistischen Bundesamtes (www.destatis.de)
A35: Link: | C35: Verbraucherpreisindex: Gesamtindex und 12 Abteilungen - Statistisches Bundesamt (destatis.de)

Sheet Beispiel a)
A3: Auftragsänderung bzw. Preisanpassung von Rahmenvereinbarungen gem. § 313 BGB sowie § 132 GWB
A5: Bitte bei der Dateneingabe bzw. der Ermittlung der neuen Angebotspreise unbedingt die Kommentare der einzelnen Zellen beachten!
A6: In den Tabellenregistern finden Sie Beispiele zur Herleitung!
A9: Vergabenummer: | D9: XXXXXXX
A10: Vertragspartner: | D10: Harvesterbetrieb Holzmann
A11: Vertragsbeginn: | D11: 2021-06-01
A12: Angebotspreis bei Vertragsbeginn [Euro]: | D12: 225.00 €
A13: Datum der letzten Preisanpassung: | D13: -
A14: Letzter aktualisierter Angebotspreis [Euro]: | D14: -
A16: Monat /Jahr | B16: Preisindex [Punkte] | C16: Veränderung Preisindex zum Vormonat [Punkte] | D16: Veränderung [%] Anzeige gerundet | E16: Angebotspreis [Euro] Ermittelt mit ungerundeten Werten
A17: 2021-02-01 | B17: 110.0 | C17: - | D17: -
A18: 2021-03-01 | B18: 110.6 | C18: =B18-B17 -> 0.6 | D18: =C18/B17 -> 0.55% | E18: =E17+E17*D18 -> 0.00
A19: 2021-04-01 | B19: 110.8 | C19: =B19-B18 -> 0.2 | D19: =C19/B18 -> 0.18% | E19: =E18+E18*D19 -> 0.00
A20: 2021-05-01 | B20: 111.1 | C20: 0.3 | D20: 0.27% | E20: 0.00
A21: 2021-06-01 | B21: 111.3 | C21: 0.2 | D21: 0.18% | E21: 225.00
A22: 2021-07-01 | B22: 111.6 | C22: 0.3 | D22: 0.27% | E22: 225.61
A23: 2021-08-01 | B23: 111.9 | C23: 0.3 | D23: 0.27% | E23: 226.21
A24: 2021-09-01 | B24: 112.2 | C24: 0.3 | D24: 0.27% | E24: 226.82
A25: 2021-10-01 | B25: 112.3 | C25: 0.1 | D25: 0.09% | E25: 227.02
A26: 2021-11-01 | B26: 112.5 | C26: 0.2 | D26: 0.18% | E26: 227.43
A27: 2021-12-01 | B27: 112.6 | C27: 0.1 | D27: 0.09% | E27: 227.63
A28: 2022-01-01 | B28: 112.1 | C28: -0.5 | D28: -0.44% | E28: 226.62
A29: 2022-02-01 | B29: 112.4 | C29: =B29-B28 -> 0.3 | D29: =C29/B28 -> 0.27% | E29: =E28+E28*D29 -> 227.22
A30: 2022-03-01 | B30: 112.8 | C30: =B30-B29 -> 0.4 | D30: =C30/B29 -> 0.36% | E30: =E29+E29*D30 -> 228.03
A31: 2022-04-01 | B31: 113.3 | C31: =B31-B30 -> 0.5 | D31: =C31/B30 -> 0.44% | E31: =E30+E30*D31 -> 229.04
A32: 2022-05-01 | B32: 113.9 | C32: 0.6 | D32: 0.53% | E32: 230.26
A34: Datenquelle: | C34: Abteilung 12 „Andere Waren- und Dienstleistungen“ (Veränderungsrate zum Vormonat in %) des statistischen Bundesamtes (www.destatis.de)
A35: Link: | C35: Verbraucherpreisindex: Gesamtindex und 12 Abteilungen - Statistisches Bundesamt (destatis.de)

Sheet Beispiel b)
A3: Auftragsänderung bzw. Preisanpassung von Rahmenvereinbarungen gem. § 313 BGB sowie § 132 GWB
A5: Bitte bei der Dateneingabe bzw. der Ermittlung der neuen Angebotspreise unbedingt die Kommentare der einzelnen Zellen beachten!
A6: In den Tabellenregistern finden Sie Beispiele zur Herleitung!
A9: Vergabenummer: | D9: XXXXXXX
A10: Vertragspartner: | D10: Holzrückeunternehmen Eichmann
A11: Vertragsbeginn: | D11: 2021-02-01
A12: Angebotspreis bei Vertragsbeginn [Euro]: | D12: 84.50 €
A13: Datum der letzten Preisanpassung: | D13: 2022-02-01
A14: Letzter aktualisierter Angebotspreis [Euro]: | D14: 86.23 €
A16: Monat /Jahr | B16: Preisindex [Punkte] | C16: Veränderung Preisindex zum Vormonat [Punkte] | D16: Veränderung [%] Anzeige gerundet | E16: Angebotspreis [Euro] Ermittelt mit ungerundeten Werten
A17: 2021-02-01 | B17: 110.0 | C17: - | D17: -
A18: 2021-03-01 | B18: 110.6 | C18: =B18-B17 -> 0.6 | D18: =C18/B17 -> 0.55% | E18: =E17+E17*D18 -> 0.00
A19: 2021-04-01 | B19: 110.8 | C19: =B19-B18 -> 0.2 | D19: =C19/B18 -> 0.18% | E19: =E18+E18*D19 -> 0.00
A20: 2021-05-01 | B20: 111.1 | C20: 0.3 | D20: 0.27% | E20: 0.00
A21: 2021-06-01 | B21: 111.3 | C21: 0.2 | D21: 0.18% | E21: 0.00
A22: 2021-07-01 | B22: 111.6 | C22: 0.3 | D22: 0.27% | E22: 0.00
A23: 2021-08-01 | B23: 111.9 | C23: 0.3 | D23: 0.27% | E23: 0.00
A24: 2021-09-01 | B24: 112.2 | C24: 0.3 | D24: 0.27% | E24: 0.00
A25: 2021-10-01 | B25: 112.3 | C25: 0.1 | D25: 0.09% | E25: 0.00
A26: 2021-11-01 | B26: 112.5 | C26: 0.2 | D26: 0.18% | E26: 0.00
A27: 2021-12-01 | B27: 112.6 | C27: 0.1 | D27: 0.09% | E27: 0.00
A28: 2022-01-01 | B28: 112.1 | C28: -0.5 | D28: -0.44% | E28: 0.00
A29: 2022-02-01 | B29: 112.4 | C29: =B29-B28 -> 0.3 | D29: =C29/B28 -> 0.27% | E29: 86.23
A30: 2022-03-01 | B30: 112.8 | C30: =B30-B29 -> 0.4 | D30: =C30/B29 -> 0.36% | E30: 86.54
A31: 2022-04-01 | B31: 113.3 | C31: =B31-B30 -> 0.5 | D31: =C31/B30 -> 0.44% | E31: =E30+E30*D31 -> 86.92
A32: 2022-05-01 | B32: 113.9 | C32: =B32-B31 -> 0.6 | D32: =C32/B31 -> 0.53% | E32: =E31+E31*D32 -> 87.38
A34: Datenquelle: | C34: Abteilung 12 „Andere Waren- und Dienstleistungen“ (Veränderungsrate zum Vormonat in %) des statistischen Bundesamtes (www.destatis.de)
A35: Link: | C35: Verbraucherpreisindex: Gesamtindex und 12 Abteilungen - Statistisches Bundesamt (destatis.de)
